[Event "HUN-ch U8-U18 2019"]
[Site "Balatonlelle"]
[Date "2019.06.25"]
[Round "6.25"]
[White "Kolimar, Kristof Pal"]
[Black "Zsaki, Akos"]
[Result "1-0"]
[ECO "A06"]
[WhiteElo "1979"]
[BlackElo "1432"]
[Annotator "NA"]
[PlyCount "55"]
[EventDate "2019.06.21"]
[EventType "swiss"]
[EventCountry "HUN"]
[SourceTitle "playchess.com"]
[Source "ChessBase"]
[SourceQuality "1"]
[TimeControl "40/5400+30:1800+30"]

1. Nf3 {[%emt 0:00:12]} d5 {[%emt 0:00:10]} 2. c4 {[%emt 0:00:14]} Nf6 {[%emt 0:00:33]} 3. cxd5 {[%emt 0:00:11]} Nxd5 {[%emt 0:00:10]} 4. g3 {[%emt 0:00:05]} e6 {[%emt 0:00:28]} 5. d4 {[%emt 0:00:38]} Bb4+ {[%emt 0:00:35]} 6. Bd2 {[%emt 0:00:08]} Bxd2+ {[%emt 0:01:43]} 7. Qxd2 {[%emt 0:00:51]} O-O {[%emt 0:01:47]} 8. e4 {[%emt 0:01:55]} Nb6 {[%emt 0:04:20]} 9. Nc3 {[%emt 0:01:32]} N8d7 {[%emt 0:04:17]} 10. O-O-O {[%emt 0:04:47]} Nf6 {[%emt 0:01:49]} 11. Bd3 {[%emt 0:02:48]} Qe7 {[%emt 0:04:06]} 12. Qc2 {[%emt 0:03:19]} h6 {[%emt 0:05:48]} 13. Kb1 {[%emt 0:11:43]} c5 {[%emt 0:03:21]} 14. e5 {[%emt 0:01:41]} Nfd5 {[%emt 0:07:09]} 15. Nxd5 Nxd5 {[%emt 0:00:09]} 16. Qxc5 {[%emt 0:01:27]} Qxc5 {[%emt 0:02:26]} 17. dxc5 {[%emt 0:00:27]} Bd7 {[%emt 0:01:24]} 18. Nd4 {[%emt 0:10:41]} Rac8 {[%emt 0:04:14]} 19. Rc1 {[%emt 0:01:11]} Bc6 {[%emt 0:06:52]} 20. Rhe1 {[%emt 0:02:54]} Rfd8 {[%emt 0:03:40]} 21. Be4 {[%emt 0:05:30]} Rd7 {[%emt 0:06:37]} 22. f4 {[%emt 0:04:31]} Nb4 {[%emt 0:05:21]} 23. Nxc6 {[%emt 0:02:18]} Nxc6 {[%emt 0:02:36]} 24. Red1 {[%emt 0:00:56]} Rcd8 {[%emt 0:00:44]} 25. Rd6 {[%emt 0:01:37]} Nb8 {[%emt 0:10:29]} 26. Bxb7 {[%emt 0:01:44]} Kf8 {[%emt 0:02:55]} 27. c6 {[%emt 0:01:26]} Rxd6 {[%emt 0:00:48]} 28. exd6 {[%emt 0:00:10]} 1-0

[Event "HUN-ch U8-U18 2019"]
[Site "Balatonlelle"]
[Date "2019.06.25"]
[Round "6.26"]
[White "Toth, Gergely"]
[Black "Szarka, Tibor"]
[Result "1/2-1/2"]
[ECO "B07"]
[WhiteElo "1485"]
[BlackElo "1379"]
[Annotator "NA"]
[PlyCount "63"]
[EventDate "2019.06.21"]
[EventType "swiss"]
[EventCountry "HUN"]
[SourceTitle "playchess.com"]
[Source "ChessBase"]
[SourceQuality "1"]
[TimeControl "40/5400+30:1800+30"]

1. e4 {[%emt 0:00:02]} d6 {[%emt 0:00:11]} 2. d4 {[%emt 0:00:36]} Nf6 {[%emt 0:00:19]} 3. Nc3 {[%emt 0:00:32]} Nbd7 {[%emt 0:00:13]} 4. Be3 {[%emt 0:01:26]} e5 {[%emt 0:00:37]} 5. Nf3 {[%emt 0:03:00]} Be7 {[%emt 0:01:15]} 6. h3 {[%emt 0:01:49]} c6 {[%emt 0:01:05]} 7. Be2 {[%emt 0:01:59]} O-O {[%emt 0:00:31]} 8. O-O {[%emt 0:02:09]} b5 {[%emt 0:02:19]} 9. a3 {[%emt 0:01:08]} a6 {[%emt 0:00:38]} 10. Qd2 {[%emt 0:04:41]} Bb7 {[%emt 0:00:51]} 11. dxe5 {[%emt 0:01:33]} dxe5 {[%emt 0:01:05]} 12. Bg5 {[%emt 0:12:29]} Qc7 {[%emt 0:01:27]} 13. b4 {[%emt 0:07:43]} Rac8 {[%emt 0:08:20]} 14. Rad1 {[%emt 0:03:26]} c5 {[%emt 0:11:32]} 15. Nd5 {[%emt 0:03:45]} Nxd5 {[%emt 0:01:06]} 16. exd5 {[%emt 0:00:10]} Bxg5 {[%emt 0:00:39]} 17. Qxg5 {[%emt 0:01:32]} cxb4 {[%emt 0:08:17]} 18. axb4 {[%emt 0:03:29]} Qd6 {[%emt 0:04:28]} 19. Nh4 {[%emt 0:09:19]} Qf6 {[%emt 0:04:51]} 20. Qg4 {[%emt 0:02:04]} Nb6 {[%emt 0:02:15]} 21. d6 {[%emt 0:06:20]} Rcd8 {[%emt 0:03:23]} 22. Rd3 {[%emt 0:17:29]} Bc8 {[%emt 0:04:57]} 23. Qe4 {[%emt 0:03:07]} Rxd6 {[%emt 0:00:58]} 24. Rf3 {[%emt 0:02:01]} Qh6 {[%emt 0:07:31]} 25. c3 {[%emt 0:03:55]} Rf6 {[%emt 0:02:37]} 26. Rd1 {[%emt 0:02:27]} Rd6 {[%emt 0:06:07]} 27. Rxd6 Qxd6 {[%emt 0:00:25]} 28. Nf5 {[%emt 0:04:53]} Bxf5 {[%emt 0:00:30]} 29. Qxf5 {[%emt 0:00:20]} Qe7 {[%emt 0:02:23]} 30. Bd3 g6 31. Qf6 Qxf6 32. Rxf6 1/2-1/2

[Event "HUN-ch U8-U18 2019"]
[Site "Balatonlelle"]
[Date "2019.06.25"]
[Round "6.27"]
[White "Panda, Barnabas"]
[Black "Karacsonyi, Bank"]
[Result "0-1"]
[ECO "D37"]
[WhiteElo "1722"]
[BlackElo "1529"]
[Annotator "NA"]
[PlyCount "108"]
[EventDate "2019.06.21"]
[EventType "swiss"]
[EventCountry "HUN"]
[SourceTitle "playchess.com"]
[Source "ChessBase"]
[SourceQuality "1"]
[TimeControl "40/5400+30:1800+30"]

1. d4 {[%emt 0:00:02]} d5 {[%emt 0:00:23]} 2. c4 {[%emt 0:00:26]} e6 {[%emt 0:00:22]} 3. Nc3 {[%emt 0:00:29]} Nf6 {[%emt 0:00:15]} 4. Nf3 {[%emt 0:00:49]} Be7 {[%emt 0:00:33]} 5. Bf4 {[%emt 0:01:19]} O-O {[%emt 0:00:30]} 6. e3 {[%emt 0:00:47]} b6 {[%emt 0:00:33]} 7. Bd3 {[%emt 0:01:47]} Bb7 {[%emt 0:01:34]} 8. O-O {[%emt 0:02:10]} Nbd7 {[%emt 0:00:19]} 9. cxd5 {[%emt 0:03:59]} Nxd5 {[%emt 0:01:14]} 10. Nxd5 {[%emt 0:00:18]} Bxd5 {[%emt 0:00:21]} 11. Qc2 {[%emt 0:00:52]} c5 {[%emt 0:06:30]} 12. Bxh7+ {[%emt 0:01:20]} Kh8 {[%emt 0:00:37]} 13. Be4 {[%emt 0:00:26]} Nf6 {[%emt 0:01:17]} 14. Bxd5 {[%emt 0:01:22]} Nxd5 {[%emt 0:00:12]} 15. Bg3 {[%emt 0:01:16]} Rc8 {[%emt 0:01:21]} 16. Qd2 {[%emt 0:01:50]} c4 {[%emt 0:04:15]} 17. Rac1 {[%emt 0:06:06]} b5 {[%emt 0:01:27]} 18. e4 {[%emt 0:02:08]} Nb4 {[%emt 0:00:30]} 19. Be5 {[%emt 0:08:55]} f6 {[%emt 0:02:31]} 20. Bg3 {[%emt 0:01:21]} Nd3 {[%emt 0:01:09]} 21. Rc2 {[%emt 0:03:25]} a5 {[%emt 0:06:03]} 22. Qe3 {[%emt 0:07:41]} Kh7 {[%emt 0:05:35]} 23. a3 {[%emt 0:04:14]} b4 {[%emt 0:00:17]} 24. axb4 {[%emt 0:01:08]} axb4 {[%emt 0:01:09]} 25. b3 {[%emt 0:00:46]} Qa5 {[%emt 0:02:35]} 26. Rxc4 {[%emt 0:02:29]} Rxc4 {[%emt 0:00:10]} 27. bxc4 {[%emt 0:00:32]} Qa3 {[%emt 0:00:57]} 28. c5 {[%emt 0:00:46]} Nb2 {[%emt 0:00:25]} 29. Qxa3 {[%emt 0:01:29]} bxa3 {[%emt 0:00:23]} 30. h3 {[%emt 0:00:21]} Ra8 {[%emt 0:01:14]} 31. Nd2 {[%emt 0:01:53]} e5 {[%emt 0:01:06]} 32. dxe5 {[%emt 0:01:57]} Bxc5 {[%emt 0:00:44]} 33. exf6 {[%emt 0:00:22]} gxf6 {[%emt 0:00:36]} 34. Nb3 {[%emt 0:01:40]} Bb4 {[%emt 0:00:42]} 35. Bf4 {[%emt 0:01:59]} Nd3 {[%emt 0:07:55]} 36. Be3 {[%emt 0:02:58]} Bc3 {[%emt 0:01:49]} 37. Bd4 {[%emt 0:00:33]} Bb2 {[%emt 0:00:40]} 38. Bxb2 {[%emt 0:05:13]} axb2 {[%emt 0:03:08]} 39. Rb1 {[%emt 0:01:25]} Rb8 {[%emt 0:01:53]} 40. Nd2 {[%emt 0:00:00]} Rb4 {[%emt 0:00:00]} 41. Nf1 Nf4 42. Ng3 {[%emt 0:07:32]} Nd3 {[%emt 0:02:34]} 43. f3 {[%emt 0:02:09]} Ra4 {[%emt 0:00:46]} 44. Ne2 {[%emt 0:00:40]} Rc4 {[%emt 0:00:57]} 45. Kh2 {[%emt 0:00:32]} Rc2 {[%emt 0:00:15]} 46. Nd4 {[%emt 0:05:12]} Rc1 {[%emt 0:00:33]} 47. Rxb2 {[%emt 0:00:31]} Nxb2 {[%emt 0:00:19]} 48. g4 {[%emt 0:00:33]} Nd3 {[%emt 0:00:27]} 49. Kg3 {[%emt 0:00:32]} Ne5 {[%emt 0:00:40]} 50. h4 {[%emt 0:00:47]} Rc3 {[%emt 0:00:16]} 51. h5 {[%emt 0:01:46]} Rd3 {[%emt 0:00:50]} 52. Ne6 Nxf3 {[%emt 0:01:36]} 53. Kf4 {[%emt 0:01:18]} Ne5 {[%emt 0:00:28]} 54. g5 {[%emt 0:01:11]} Rf3# {[%emt 0:00:05]} 0-1

[Event "HUN-ch U8-U18 2019"]
[Site "Balatonlelle"]
[Date "2019.06.25"]
[Round "6.28"]
[White "Matyassy, Lazar"]
[Black "Foldes, Marton Gabor"]
[Result "1/2-1/2"]
[ECO "B87"]
[WhiteElo "1539"]
[BlackElo "1653"]
[Annotator "NA"]
[PlyCount "86"]
[EventDate "2019.06.21"]
[EventType "swiss"]
[EventCountry "HUN"]
[SourceTitle "playchess.com"]
[Source "ChessBase"]
[SourceQuality "1"]
[TimeControl "40/5400+30:1800+30"]

1. e4 {[%emt 0:00:05]} c5 {[%emt 0:00:06]} 2. Nf3 {[%emt 0:00:05]} e6 {[%emt 0:00:21]} 3. d4 {[%emt 0:00:06]} cxd4 {[%emt 0:00:05]} 4. Nxd4 {[%emt 0:00:06]} Nf6 {[%emt 0:00:10]} 5. Nc3 {[%emt 0:00:07]} d6 {[%emt 0:00:17]} 6. Bc4 {[%emt 0:00:22]} a6 {[%emt 0:00:15]} 7. Bb3 {[%emt 0:00:07]} b5 {[%emt 0:00:19]} 8. Bg5 {[%emt 0:05:48]} Be7 {[%emt 0:02:44]} 9. O-O {[%emt 0:02:51]} Bb7 {[%emt 0:01:41]} 10. Re1 {[%emt 0:03:32]} Nbd7 {[%emt 0:03:34]} 11. Bxe6 {[%emt 0:02:42]} fxe6 {[%emt 0:03:53]} 12. Nxe6 {[%emt 0:00:52]} Qb6 {[%emt 0:02:52]} 13. Nxg7+ {[%emt 0:04:59]} Kf7 {[%emt 0:04:07]} 14. Nf5 {[%emt 0:01:50]} Rhe8 {[%emt 0:07:35]} 15. Nxe7 {[%emt 0:01:58]} Rxe7 {[%emt 0:01:36]} 16. Nd5 {[%emt 0:00:36]} Bxd5 {[%emt 0:01:51]} 17. Bxf6 {[%emt 0:00:51]} Nxf6 {[%emt 0:00:27]} 18. exd5 {[%emt 0:00:10]} Rxe1+ {[%emt 0:04:09]} 19. Qxe1 {[%emt 0:00:06]} Nxd5 {[%emt 0:00:57]} 20. Qe4 {[%emt 0:00:12]} Nc7 {[%emt 0:12:24]} 21. Qxh7+ {[%emt 0:00:34]} Ke8 {[%emt 0:08:11]} 22. Re1+ {[%emt 0:00:22]} Kd8 {[%emt 0:00:19]} 23. Re7 {[%emt 0:03:02]} Ra7 {[%emt 0:05:20]} 24. Qf7 {[%emt 0:02:32]} Kc8 {[%emt 0:02:13]} 25. h4 {[%emt 0:02:22]} Qd4 {[%emt 0:07:48]} 26. Qf5+ {[%emt 0:02:33]} Kb7 {[%emt 0:11:28]} 27. h5 {[%emt 0:02:38]} Ra8 {[%emt 0:03:55]} 28. h6 {[%emt 0:00:58]} Rh8 {[%emt 0:00:42]} 29. h7 {[%emt 0:00:26]} Qxb2 {[%emt 0:03:02]} 30. Qd5+ {[%emt 0:01:40]} Kb8 {[%emt 0:00:54]} 31. Qg8+ {[%emt 0:01:40]} Kb7 {[%emt 0:00:39]} 32. Rg7 {[%emt 0:00:54]} Qe5 {[%emt 0:06:23]} 33. Qxh8 {[%emt 0:04:31]} Qe1+ {[%emt 0:00:12]} 34. Kh2 {[%emt 0:00:13]} Qe5+ {[%emt 0:00:10]} 35. g3 {[%emt 0:00:06]} Qh5+ {[%emt 0:00:10]} 36. Kg2 {[%emt 0:00:25]} Qd5+ {[%emt 0:00:00]} 37. f3 {[%emt 0:00:26]} Qd2+ {[%emt 0:00:02]} 38. Kh3 {[%emt 0:00:09]} Qh6+ {[%emt 0:00:08]} 39. Kg4 {[%emt 0:00:00]} Qe6+ {[%emt 0:00:00]} 40. Kh5 {[%emt 0:00:00]} Qe5+ {[%emt 0:00:00]} 41. Kg4 {[%emt 0:02:58]} Qe6+ {[%emt 0:06:50]} 42. Kf4 {[%emt 0:00:13]} Qe5+ {[%emt 0:00:17]} 43. Kg4 {[%emt 0:00:14]} Qe6+ {[%emt 0:00:07]} 1/2-1/2

[Event "HUN-ch U8-U18 2019"]
[Site "Balatonlelle"]
[Date "2019.06.25"]
[Round "6.29"]
[White "Giang, Tran Nam"]
[Black "Toth, Barnabas"]
[Result "1/2-1/2"]
[ECO "B02"]
[WhiteElo "2008"]
[BlackElo "1363"]
[Annotator "NA"]
[PlyCount "74"]
[EventDate "2019.06.21"]
[EventType "swiss"]
[EventCountry "HUN"]
[SourceTitle "playchess.com"]
[Source "ChessBase"]
[SourceQuality "1"]
[TimeControl "40/5400+30:1800+30"]

1. e4 {[%emt 0:00:01]} Nf6 {[%emt 0:02:22]} 2. e5 {[%emt 0:00:06]} Nd5 {[%emt 0:00:03]} 3. Nc3 {[%emt 0:00:11]} Nb6 {[%emt 0:02:08]} 4. d4 {[%emt 0:00:56]} d6 {[%emt 0:00:32]} 5. f4 {[%emt 0:00:41]} dxe5 {[%emt 0:00:31]} 6. fxe5 {[%emt 0:00:17]} Bf5 {[%emt 0:00:29]} 7. Nf3 {[%emt 0:02:05]} e6 {[%emt 0:00:40]} 8. Be2 {[%emt 0:01:29]} Be7 {[%emt 0:00:25]} 9. O-O {[%emt 0:01:29]} O-O 10. Be3 {[%emt 0:03:24]} Nc6 {[%emt 0:02:52]} 11. Qd2 {[%emt 0:07:19]} Nd5 {[%emt 0:11:16]} 12. Nxd5 {[%emt 0:06:31]} exd5 {[%emt 0:01:05]} 13. c3 {[%emt 0:00:49]} f6 {[%emt 0:04:51]} 14. Bf4 {[%emt 0:04:53]} Qd7 {[%emt 0:08:39]} 15. Rae1 {[%emt 0:02:58]} fxe5 {[%emt 0:04:56]} 16. Nxe5 {[%emt 0:03:27]} Nxe5 {[%emt 0:01:16]} 17. Bxe5 {[%emt 0:00:19]} Bd6 {[%emt 0:02:41]} 18. Bf3 {[%emt 0:01:20]} c6 {[%emt 0:02:59]} 19. Bxd6 {[%emt 0:09:22]} Qxd6 {[%emt 0:00:15]} 20. Re5 {[%emt 0:00:08]} Bg6 {[%emt 0:01:28]} 21. Rfe1 {[%emt 0:02:29]} Rae8 {[%emt 0:01:56]} 22. Qg5 {[%emt 0:08:39]} Rxe5 {[%emt 0:10:09]} 23. Rxe5 {[%emt 0:02:39]} Qf6 {[%emt 0:03:00]} 24. Qe3 {[%emt 0:01:04]} Be4 {[%emt 0:05:08]} 25. Be2 {[%emt 0:05:49]} Qf4 {[%emt 0:02:18]} 26. Qxf4 {[%emt 0:00:21]} Rxf4 {[%emt 0:00:07]} 27. g3 {[%emt 0:00:29]} Rf5 {[%emt 0:00:40]} 28. Rxf5 {[%emt 0:00:33]} Bxf5 {[%emt 0:00:07]} 29. Kf2 {[%emt 0:00:08]} Kf7 {[%emt 0:00:30]} 30. Ke3 {[%emt 0:01:21]} g5 {[%emt 0:01:16]} 31. c4 {[%emt 0:05:05]} Be6 {[%emt 0:04:02]} 32. b3 {[%emt 0:01:27]} h6 {[%emt 0:01:40]} 33. cxd5 {[%emt 0:01:39]} Bxd5 {[%emt 0:00:10]} 34. Bc4 {[%emt 0:00:17]} Ke6 {[%emt 0:02:11]} 35. Bxd5+ {[%emt 0:02:34]} cxd5 {[%emt 0:00:52]} 36. g4 {[%emt 0:00:58]} Kd6 {[%emt 0:01:40]} 37. Kd3 {[%emt 0:00:33]} b5 {[%emt 0:01:06]} 1/2-1/2

[Event "HUN-ch U8-U18 2019"]
[Site "Balatonlelle"]
[Date "2019.06.25"]
[Round "6.30"]
[White "Csernyik, Mark"]
[Black "Havasi, Gergely Bulcsu"]
[Result "1/2-1/2"]
[ECO "B00"]
[WhiteElo "1704"]
[BlackElo "1486"]
[Annotator "NA"]
[PlyCount "86"]
[EventDate "2019.06.21"]
[EventType "swiss"]
[EventCountry "HUN"]
[SourceTitle "playchess.com"]
[Source "ChessBase"]
[SourceQuality "1"]
[TimeControl "40/5400+30:1800+30"]

1. e4 {[%emt 0:00:13]} d6 {[%emt 0:00:25]} 2. d4 {[%emt 0:00:24]} c6 {[%emt 0:00:19]} 3. Nf3 {[%emt 0:00:19]} Bg4 {[%emt 0:00:22]} 4. h3 {[%emt 0:00:09]} Bh5 {[%emt 0:00:45]} 5. Nc3 {[%emt 0:00:46]} e6 {[%emt 0:02:18]} 6. Bf4 {[%emt 0:01:38]} Qb6 {[%emt 0:01:32]} 7. Qd3 {[%emt 0:02:57]} Bg6 {[%emt 0:01:04]} 8. Nh4 {[%emt 0:01:07]} a6 {[%emt 0:02:38]} 9. Nxg6 {[%emt 0:00:56]} hxg6 {[%emt 0:00:12]} 10. O-O-O {[%emt 0:01:14]} Nd7 {[%emt 0:03:22]} 11. d5 {[%emt 0:04:06]} e5 {[%emt 0:03:21]} 12. Be3 {[%emt 0:00:30]} Qc7 {[%emt 0:00:37]} 13. f4 {[%emt 0:00:58]} c5 {[%emt 0:01:20]} 14. f5 {[%emt 0:01:01]} Ne7 {[%emt 0:02:12]} 15. g4 {[%emt 0:00:57]} b5 {[%emt 0:01:08]} 16. h4 {[%emt 0:01:54]} c4 {[%emt 0:01:52]} 17. Qd2 {[%emt 0:04:22]} Nc5 {[%emt 0:01:35]} 18. a3 {[%emt 0:02:12]} Rb8 {[%emt 0:01:43]} 19. Bxc5 {[%emt 0:02:42]} Qxc5 {[%emt 0:01:03]} 20. Na2 {[%emt 0:02:12]} Qb6 {[%emt 0:01:51]} 21. Be2 {[%emt 0:04:51]} a5 {[%emt 0:02:43]} 22. c3 {[%emt 0:03:18]} Qc5 {[%emt 0:01:39]} 23. Rdf1 {[%emt 0:00:39]} f6 {[%emt 0:02:17]} 24. fxg6 {[%emt 0:01:02]} Nxg6 {[%emt 0:00:13]} 25. g5 {[%emt 0:00:54]} Nf4 {[%emt 0:01:57]} 26. gxf6 {[%emt 0:03:24]} gxf6 {[%emt 0:01:40]} 27. Kb1 {[%emt 0:01:20]} Rb7 {[%emt 0:03:10]} 28. Rfg1 {[%emt 0:02:34]} Bh6 {[%emt 0:03:30]} 29. Qd1 {[%emt 0:00:59]} Kd8 {[%emt 0:01:51]} 30. h5 {[%emt 0:02:46]} Qe3 {[%emt 0:03:06]} 31. Bf3 {[%emt 0:00:45]} Qd3+ {[%emt 0:00:57]} 32. Qxd3 {[%emt 0:00:42]} Nxd3 {[%emt 0:02:13]} 33. Rh3 {[%emt 0:01:59]} Nf4 {[%emt 0:00:24]} 34. Rhg3 {[%emt 0:00:19]} Bg5 {[%emt 0:00:17]} 35. Nc1 {[%emt 0:00:19]} Rbh7 {[%emt 0:01:10]} 36. Rh1 {[%emt 0:00:43]} a4 {[%emt 0:03:17]} 37. Ne2 {[%emt 0:00:54]} Ke7 {[%emt 0:02:33]} 38. Nxf4 {[%emt 0:00:11]} exf4 {[%emt 0:00:45]} 39. Rgh3 {[%emt 0:00:24]} Rh6 {[%emt 0:01:28]} 40. Kc2 {[%emt 0:00:00]} Kd8 {[%emt 0:00:00]} 41. Kd2 {[%emt 0:00:46]} Kc7 {[%emt 0:01:53]} 42. Ke2 {[%emt 0:00:23]} Re8 {[%emt 0:00:32]} 43. Rg1 {[%emt 0:00:33]} Rhh8 1/2-1/2

[Event "HUN-ch U8-U18 2019"]
[Site "Balatonlelle"]
[Date "2019.06.25"]
[Round "6.31"]
[White "Biro, Daniel"]
[Black "Vadkerti, Vince"]
[Result "0-1"]
[ECO "D02"]
[WhiteElo "1343"]
[BlackElo "1558"]
[Annotator "NA"]
[PlyCount "66"]
[EventDate "2019.06.21"]
[EventType "swiss"]
[EventCountry "HUN"]
[SourceTitle "playchess.com"]
[Source "ChessBase"]
[SourceQuality "1"]
[TimeControl "40/5400+30:1800+30"]

1. Nf3 {[%emt 0:00:01]} d5 {[%emt 0:00:13]} 2. d4 {[%emt 0:00:25]} Nf6 {[%emt 0:00:34]} 3. g3 {[%emt 0:00:40]} c6 {[%emt 0:00:32]} 4. Bg2 {[%emt 0:00:34]} e6 {[%emt 0:01:11]} 5. O-O {[%emt 0:00:40]} Be7 {[%emt 0:01:19]} 6. c4 {[%emt 0:00:29]} Nbd7 {[%emt 0:00:27]} 7. Nc3 {[%emt 0:00:25]} dxc4 {[%emt 0:00:21]} 8. Ne5 {[%emt 0:02:50]} Nxe5 {[%emt 0:03:04]} 9. dxe5 {[%emt 0:00:24]} Nd5 {[%emt 0:06:17]} 10. Nxd5 {[%emt 0:01:47]} exd5 {[%emt 0:04:40]} 11. Bd2 {[%emt 0:03:32]} b5 {[%emt 0:08:40]} 12. a3 {[%emt 0:00:56]} Bf5 {[%emt 0:05:58]} 13. Bc3 {[%emt 0:00:40]} O-O {[%emt 0:01:28]} 14. Qd4 {[%emt 0:02:10]} Qb6 {[%emt 0:04:35]} 15. Qf4 {[%emt 0:03:16]} Bg6 {[%emt 0:02:25]} 16. h4 {[%emt 0:03:33]} f6 {[%emt 0:04:34]} 17. Bh3 {[%emt 0:04:42]} fxe5 {[%emt 0:03:35]} 18. Qxe5 {[%emt 0:02:57]} Bf6 {[%emt 0:01:47]} 19. Qe6+ {[%emt 0:01:21]} Bf7 {[%emt 0:01:53]} 20. Qd6 {[%emt 0:02:37]} Bxc3 {[%emt 0:00:53]} 21. bxc3 {[%emt 0:00:25]} Rad8 {[%emt 0:04:06]} 22. Qf4 {[%emt 0:02:30]} Kh8 {[%emt 0:03:33]} 23. Qd2 {[%emt 0:05:58]} Rd6 {[%emt 0:11:39]} 24. e3 {[%emt 0:00:39]} c5 {[%emt 0:03:23]} 25. Rfd1 {[%emt 0:08:34]} Rfd8 {[%emt 0:01:05]} 26. Qc2 {[%emt 0:08:56]} Bg6 {[%emt 0:00:31]} 27. Bf5 {[%emt 0:01:13]} Bxf5 {[%emt 0:03:57]} 28. Qxf5 {[%emt 0:00:27]} d4 {[%emt 0:05:27]} 29. exd4 cxd4 {[%emt 0:00:23]} 30. Qe5 {[%emt 0:06:36]} d3 {[%emt 0:02:13]} 31. Rab1 {[%emt 0:01:04]} Rf8 {[%emt 0:06:24]} 32. Rd2 {[%emt 0:02:05]} Re6 {[%emt 0:01:32]} 33. Qxb5 {[%emt 0:02:55]} Re1+ {[%emt 0:01:11]} 0-1

[Event "HUN-ch U8-U18 2019"]
[Site "Balatonlelle"]
[Date "2019.06.25"]
[Round "6.32"]
[White "Kovacs, Kristof"]
[Black "Varga, Boldizsar"]
[Result "1/2-1/2"]
[ECO "C77"]
[WhiteElo "1435"]
[BlackElo "1804"]
[Annotator "NA"]
[PlyCount "83"]
[EventDate "2019.06.21"]
[EventType "swiss"]
[EventCountry "HUN"]
[SourceTitle "playchess.com"]
[Source "ChessBase"]
[SourceQuality "1"]
[TimeControl "40/5400+30:1800+30"]

1. e4 {[%emt 0:00:03]} e5 {[%emt 0:00:07]} 2. Nf3 {[%emt 0:00:06]} Nc6 {[%emt 0:00:12]} 3. Bb5 {[%emt 0:00:14]} Nf6 {[%emt 0:00:51]} 4. Nc3 {[%emt 0:01:05]} a6 {[%emt 0:02:28]} 5. Ba4 {[%emt 0:00:16]} b5 {[%emt 0:00:31]} 6. Bb3 {[%emt 0:00:06]} Bc5 {[%emt 0:00:20]} 7. O-O {[%emt 0:00:11]} O-O {[%emt 0:00:27]} 8. d3 {[%emt 0:00:10]} h6 {[%emt 0:00:21]} 9. Be3 {[%emt 0:00:29]} Bb4 {[%emt 0:02:15]} 10. Nd5 {[%emt 0:02:00]} Re8 {[%emt 0:04:47]} 11. Nxb4 {[%emt 0:01:48]} Nxb4 {[%emt 0:00:18]} 12. c3 {[%emt 0:00:40]} Nc6 {[%emt 0:00:52]} 13. Qd2 {[%emt 0:02:45]} Ng4 {[%emt 0:03:25]} 14. h3 {[%emt 0:03:25]} Nxe3 {[%emt 0:00:52]} 15. fxe3 {[%emt 0:00:18]} Na5 {[%emt 0:04:42]} 16. Bc2 {[%emt 0:01:37]} d6 {[%emt 0:01:47]} 17. b4 {[%emt 0:00:14]} Nc6 {[%emt 0:00:14]} 18. Qf2 {[%emt 0:00:14]} Be6 {[%emt 0:00:48]} 19. d4 {[%emt 0:00:22]} Bc4 {[%emt 0:01:16]} 20. Rfe1 {[%emt 0:01:10]} f6 {[%emt 0:02:18]} 21. Nh4 {[%emt 0:01:15]} Ne7 {[%emt 0:02:26]} 22. a3 {[%emt 0:04:06]} a5 {[%emt 0:09:30]} 23. g4 {[%emt 0:03:21]} c6 {[%emt 0:02:14]} 24. Nf5 {[%emt 0:00:29]} Nxf5 {[%emt 0:00:55]} 25. Qxf5 {[%emt 0:00:20]} Be6 {[%emt 0:01:08]} 26. Qf3 {[%emt 0:00:12]} a4 {[%emt 0:08:25]} 27. d5 {[%emt 0:00:58]} Bd7 {[%emt 0:00:59]} 28. Rad1 {[%emt 0:00:42]} Qe7 {[%emt 0:01:16]} 29. Rd2 {[%emt 0:00:30]} Red8 {[%emt 0:01:40]} 30. Red1 {[%emt 0:00:46]} Rac8 {[%emt 0:02:20]} 31. Bb1 {[%emt 0:00:55]} c5 {[%emt 0:00:39]} 32. bxc5 {[%emt 0:00:08]} Rxc5 {[%emt 0:00:11]} 33. Rc1 {[%emt 0:00:44]} Rdc8 {[%emt 0:00:32]} 34. Rdc2 {[%emt 0:00:06]} Be8 {[%emt 0:02:12]} 35. Ba2 {[%emt 0:00:39]} Qf7 {[%emt 0:01:50]} 36. c4 {[%emt 0:00:21]} h5 {[%emt 0:02:09]} 37. Kf2 {[%emt 0:00:38]} hxg4 {[%emt 0:01:47]} 38. hxg4 {[%emt 0:00:30]} Bd7 {[%emt 0:02:12]} 39. Kg3 {[%emt 0:01:44]} Qg6 {[%emt 0:02:59]} 40. Rc3 {[%emt 0:00:00]} R5c7 {[%emt 0:00:00]} 41. R3c2 {[%emt 0:02:30]} Rc5 {[%emt 0:02:10]} 42. Rc3 {[%emt 0:00:13]} 1/2-1/2

[Event "HUN-ch U8-U18 2019"]
[Site "Balatonlelle"]
[Date "2019.06.25"]
[Round "6.33"]
[White "Kerekes, Laszlo Fulop"]
[Black "Lehocz, Jozsef Jr."]
[Result "1/2-1/2"]
[ECO "B01"]
[WhiteElo "1320"]
[BlackElo "1382"]
[Annotator "NA"]
[PlyCount "52"]
[EventDate "2019.06.21"]
[EventType "swiss"]
[EventCountry "HUN"]
[SourceTitle "playchess.com"]
[Source "ChessBase"]
[SourceQuality "1"]
[TimeControl "40/5400+30:1800+30"]

1. e4 {[%emt 0:00:02]} d5 {[%emt 0:00:05]} 2. exd5 {[%emt 0:00:35]} Qxd5 {[%emt 0:00:07]} 3. Nc3 {[%emt 0:00:37]} Qd6 {[%emt 0:00:06]} 4. Nf3 {[%emt 0:00:39]} Bg4 {[%emt 0:00:07]} 5. h3 {[%emt 0:00:52]} Bxf3 {[%emt 0:00:05]} 6. Qxf3 {[%emt 0:00:51]} c6 {[%emt 0:00:07]} 7. Bc4 {[%emt 0:01:13]} e6 {[%emt 0:00:07]} 8. O-O {[%emt 0:00:39]} Nf6 {[%emt 0:00:07]} 9. d3 {[%emt 0:01:01]} Be7 {[%emt 0:00:46]} 10. Re1 {[%emt 0:00:56]} O-O {[%emt 0:00:16]} 11. Bf4 {[%emt 0:00:38]} Qb4 {[%emt 0:00:26]} 12. a3 {[%emt 0:02:31]} Qxb2 {[%emt 0:02:19]} 13. Be5 {[%emt 0:01:21]} Nbd7 {[%emt 0:07:33]} 14. Bd4 {[%emt 0:02:13]} c5 {[%emt 0:01:17]} 15. Reb1 {[%emt 0:02:05]} Qxc2 {[%emt 0:01:18]} 16. Ra2 {[%emt 0:01:48]} Qxb1+ {[%emt 0:00:54]} 17. Nxb1 {[%emt 0:00:28]} cxd4 {[%emt 0:00:06]} 18. Nd2 {[%emt 0:01:30]} Nc5 {[%emt 0:03:19]} 19. Nb3 {[%emt 0:01:29]} Nxb3 {[%emt 0:00:13]} 20. Bxb3 {[%emt 0:00:24]} Bd6 {[%emt 0:00:29]} 21. Rd2 {[%emt 0:01:38]} Bxa3 {[%emt 0:00:37]} 22. Bc4 {[%emt 0:01:46]} Rfb8 {[%emt 0:01:17]} 23. Ra2 {[%emt 0:02:13]} Bd6 {[%emt 0:00:55]} 24. Rb2 {[%emt 0:01:29]} b6 {[%emt 0:01:25]} 25. g3 a6 26. Qc6 {[%emt 0:04:15]} Bc5 {[%emt 0:03:06]} 1/2-1/2